fUST/lending_fUST_20240817
["ID","MTS","AMOUNT","RATE_DAILY","PERIOD"]
[335154609,1723891437219,-621.85,0.00023835,2]
[335154610,1723891437258,-465.55237741,0.00023857,2]
[335154611,1723891437299,-150.112233,0.000239,5]
[335154612,1723891437342,-150.112233,0.000239,5]
[335154613,1723891437381,-500.0,0.00024098,2]
[335154614,1723891437420,-500.0,0.00024108,2]
[335154615,1723891437461,-511.14127615,0.00024109,2]
[335154616,1723891437497,-500.0,0.00024109,2]
[335154617,1723891437533,-500.0,0.00024109,2]
[335154618,1723891437567,-500.0,0.00024109,2]
[335154619,1723891437605,-200.0,0.00024109,2]
[335154620,1723891437641,-500.0,0.00024109,2]
[335154621,1723891437677,-234.86793617,0.00024109,2]
[335154622,1723891437714,-500.0,0.00024109,2]
[335154623,1723891437752,-500.0,0.00024109,2]
[335154624,1723891437792,-583.65,0.00024109,2]
[335154625,1723891437830,-500.0,0.00024109,2]
[335154626,1723891437870,-500.0,0.00024109,2]
[335154627,1723891437906,-500.0,0.00024109,2]
[335154628,1723891437943,-500.0,0.00024109,2]
[335154629,1723891437978,-412.85340007,0.00024109,2]
[335154630,1723891438022,-500.0,0.00024109,2]
[335154631,1723891438060,-500.0,0.00024109,2]
[335154632,1723891438102,-500.0,0.00024109,2]
[335154633,1723891438142,-500.0,0.00024109,2]
[335154634,1723891438181,-500.0,0.00024109,2]
[335154635,1723891438222,-500.0,0.00024109,2]
[335154636,1723891438267,-500.0,0.00024109,2]
[335154637,1723891438314,-532.94,0.00024109,2]
[335154638,1723891438353,-538.43,0.00024109,2]
[335154639,1723891438394,-500.0,0.00024109,2]
[335154640,1723891438433,-500.0,0.00024109,2]
[335154641,1723891438472,-679.41,0.00024109,2]
[335154642,1723891438666,-500.0,0.00024109,2]
[335154643,1723891438707,-544.22,0.00024109,2]
[335154644,1723891438746,-500.0,0.00024109,2]
[335154645,1723891438791,-500.0,0.00024109,2]
[335154646,1723891438828,-500.0,0.00024109,2]
[335154647,1723891438866,-500.0,0.00024109,2]
[335154648,1723891438903,-521.59,0.00024109,2]
[335154649,1723891438939,-500.0,0.00024109,2]
[335154650,1723891438976,-329.25825147,0.00024109,2]
[335154651,1723891439014,-588.2,0.00024109,2]
[335154652,1723891439053,-356.60328324,0.00024109,2]
[335154653,1723891439091,-500.0,0.00024109,2]
[335154654,1723891439128,-500.0,0.00024109,2]
[335154655,1723891439166,-500.0,0.00024109,2]
[335154656,1723891439204,-500.0,0.00024109,2]
[335154657,1723891439241,-500.0,0.00024109,2]
[335154658,1723891439277,-762.22,0.00024109,2]
[335154659,1723891439318,-723.81,0.00024109,2]
[335154660,1723891439358,-500.0,0.00024109,2]
[335154661,1723891439397,-500.0,0.00024109,2]
[335154662,1723891439435,-559.60253216,0.00024109,2]
[335154663,1723891439475,-500.0,0.00024109,2]
[335154664,1723891439515,-500.0,0.00024109,2]
[335154665,1723891439555,-604.91,0.00024109,2]
[335154666,1723891439594,-500.0,0.00024109,2]
[335154667,1723891439633,-500.0,0.00024109,2]
[335154668,1723891439675,-500.0,0.00024109,2]
[335154669,1723891439717,-500.0,0.00024109,2]
[335154670,1723891439759,-1091.72,0.00024109,2]
[335154671,1723891439801,-500.0,0.00024109,2]
[335154672,1723891439842,-500.0,0.00024109,2]
[335154673,1723891439884,-863.04,0.00024109,2]
[335154674,1723891439925,-633.13,0.00024109,2]
[335154675,1723891439965,-681.39,0.00024109,2]
[335154676,1723891440005,-500.0,0.00024109,2]
[335154677,1723891440047,-500.0,0.00024109,2]
[335154678,1723891440089,-500.0,0.00024109,2]
[335154679,1723891440132,-500.0,0.00024109,2]
[335154680,1723891440176,-500.0,0.00024109,2]
[335154681,1723891440217,-274.09433569,0.00024109,2]
[335154682,1723891440259,-500.0,0.00024109,2]
[335154683,1723891440302,-604.59,0.00024109,2]
[335154684,1723891440351,-500.0,0.00024109,2]
[335154685,1723891440395,-500.0,0.00024109,2]
[335154686,1723891440439,-615.38,0.00024109,2]
[335154687,1723891440481,-500.0,0.00024109,2]
[335154688,1723891440521,-500.0,0.00024109,2]
[335154689,1723891440562,-500.0,0.00024109,2]
[335154690,1723891440602,-500.0,0.00024109,2]
[335154691,1723891440642,-1269.87,0.00024109,2]
[335154692,1723891440680,-500.0,0.00024109,2]
[335154693,1723891440719,-500.0,0.00024109,2]
[335154694,1723891440759,-500.0,0.00024109,2]
[335154695,1723891440799,-500.0,0.00024109,2]
[335154696,1723891440839,-935.54,0.00024109,2]
[335154697,1723891440879,-748.07,0.00024109,2]
[335154698,1723891440918,-500.0,0.00024109,2]
[335154699,1723891440958,-554.61,0.00024109,2]
[335154700,1723891441000,-1119.04,0.00024109,2]
[335154701,1723891441043,-596.96,0.00024109,2]
[335154702,1723891441084,-500.0,0.00024109,2]
[335154703,1723891441127,-595.55,0.00024109,2]
[335154704,1723891441168,-500.0,0.00024109,2]
[335154705,1723891441209,-500.0,0.00024109,2]
[335154706,1723891441250,-733.25,0.00024109,2]
[335154707,1723891441290,-500.0,0.00024109,2]
[335154708,1723891441331,-611.55,0.00024109,2]
[335154709,1723891441374,-557.24,0.00024109,2]
[335154710,1723891441413,-500.0,0.00024109,2]
[335154711,1723891441453,-500.0,0.00024109,2]
[335154712,1723891441490,-1056.32,0.00024109,2]
[335154713,1723891441529,-254.72,0.00024109,2]
[335154714,1723891441572,-500.0,0.00024109,2]
[335154715,1723891441608,-528.21,0.00024109,2]
[335154716,1723891441644,-788.64,0.00024109,2]
[335154717,1723891441682,-714.0,0.00024109,2]
[335154718,1723891441723,-604.07,0.00024109,2]
[335154719,1723891441762,-521.44,0.00024109,2]
[335154720,1723891441802,-500.0,0.00024109,2]
[335154721,1723891441843,-500.0,0.00024109,2]
[335154722,1723891441884,-1279.11,0.00024109,2]
[335154723,1723891441924,-611.28,0.00024109,2]
[335154724,1723891441964,-500.0,0.00024109,2]
[335154725,1723891442006,-500.0,0.00024109,2]
[335154726,1723891442054,-2691.39,0.00024109,2]
[335154727,1723891442094,-500.0,0.00024109,2]
[335154728,1723891442138,-611.25,0.00024109,2]
[335154729,1723891442178,-500.0,0.00024109,2]
[335154730,1723891442218,-673.24,0.00024109,2]
[335154731,1723891442259,-786.26,0.00024109,2]
[335154732,1723891442301,-500.0,0.00024109,2]
[335154733,1723891442348,-2049.78,0.00024109,2]
[335154734,1723891442388,-868.03,0.00024109,2]
[335154735,1723891442429,-1141.49,0.00024109,2]
[335154736,1723891442471,-1514.85,0.00024109,2]
[335154737,1723891442512,-852.88,0.00024109,2]
[335154738,1723891442556,-500.0,0.00024109,2]
[335154739,1723891442599,-500.0,0.00024109,2]
[335154740,1723891442643,-4453.72,0.00024109,2]
[335154741,1723891442685,-500.0,0.00024109,2]
[335154742,1723891442726,-500.0,0.00024109,2]
[335154743,1723891442769,-1273.07,0.00024109,2]
[335154744,1723891442813,-616.47,0.00024109,2]
[335154745,1723891442854,-500.0,0.00024109,2]
[335154746,1723891442897,-500.0,0.00024109,2]
[335154747,1723891442936,-575.39,0.00024109,2]
[335154748,1723891442976,-766.96,0.00024109,2]
[335154749,1723891443017,-1100.47,0.00024109,2]
[335154750,1723891443057,-500.0,0.00024109,2]
[335154751,1723891443104,-1098.98,0.00024109,2]
[335154752,1723891443148,-724.68,0.00024109,2]
[335154753,1723891443201,-848.12,0.00024109,2]
[335154754,1723891443247,-995.03,0.00024109,2]
[335154755,1723891443293,-525.6,0.00024109,2]
[335154756,1723891443342,-582.62,0.00024109,2]
[335154757,1723891443391,-500.0,0.00024109,2]
[335154758,1723891443440,-500.0,0.00024109,2]
[335154759,1723891443487,-500.0,0.00024109,2]
[335154760,1723891443535,-594.41,0.00024109,2]
[335154761,1723891443584,-506.91,0.00024109,2]
[335154762,1723891443629,-500.0,0.00024109,2]
[335154763,1723891443676,-911.63,0.00024109,2]
[335154764,1723891443720,-213.36952133,0.00024109,2]
[335154765,1723891443764,-825.45,0.00024109,2]
[335154766,1723891443808,-500.0,0.00024109,2]
[335154767,1723891443852,-500.0,0.00024109,2]
[335154768,1723891443894,-500.0,0.00024109,2]
[335154769,1723891443937,-500.0,0.00024109,2]
[335154770,1723891443989,-398.31428737,0.00024109,2]
[335154771,1723891444031,-500.0,0.00024109,2]
[335154772,1723891444073,-585.54,0.00024109,2]
[335154773,1723891444118,-500.0,0.00024109,2]
[335154774,1723891444329,-500.0,0.00024109,2]
[335154775,1723891444374,-2531.26,0.00024109,2]
[335154776,1723891444415,-757.2,0.00024109,2]
[335154777,1723891444459,-500.0,0.00024109,2]
[335154778,1723891444503,-6925.33,0.00024109,2]
[335154779,1723891444548,-500.0,0.00024109,2]
[335154780,1723891444592,-753.32,0.00024109,2]
[335154781,1723891444636,-500.0,0.00024109,2]
[335154782,1723891444681,-500.0,0.00024109,2]
[335154783,1723891444724,-500.0,0.00024109,2]
[335154784,1723891444767,-502.37,0.00024109,2]
[335154785,1723891444811,-500.0,0.00024109,2]
[335154786,1723891444859,-646.63,0.00024109,2]
[335154787,1723891444903,-500.0,0.00024109,2]
[335154788,1723891444946,-500.0,0.00024109,2]
[335154789,1723891444989,-1147.61,0.00024109,2]
[335154790,1723891445029,-786.45,0.00024109,2]
[335154791,1723891445071,-500.0,0.00024109,2]
[335154792,1723891445110,-656.6,0.00024109,2]
[335154793,1723891445149,-734.42,0.00024109,2]
[335154794,1723891445188,-623.95,0.00024109,2]
[335154795,1723891445228,-500.0,0.00024109,2]
[335154796,1723891445269,-500.0,0.00024109,2]
[335154797,1723891445311,-500.0,0.00024109,2]
[335154798,1723891445353,-500.0,0.00024109,2]
[335154799,1723891445395,-500.0,0.00024109,2]
[335154800,1723891445438,-854.07,0.00024109,2]
[335154801,1723891445479,-1042.81,0.00024109,2]
[335154802,1723891445519,-670.26,0.00024109,2]
[335154803,1723891445560,-400.0,0.00024142,2]
[335154804,1723891445598,-400.0,0.00024142,2]
[335154805,1723891445639,-150.112233,0.000242,3]
[335154806,1723891445680,-150.112233,0.000242,5]
[335154807,1723891445720,-500.0,0.00024383,2]
[335154808,1723891445759,-500.0,0.00024383,2]
[335154809,1723891445800,-500.0,0.00024383,2]
[335154810,1723891445840,-200.0,0.00024383,2]
[335154811,1723891445881,-500.0,0.00024383,2]
[335154812,1723891445921,-500.0,0.00024383,2]
[335154813,1723891445962,-500.0,0.00024383,2]
[335154814,1723891446003,-583.65,0.00024383,2]
[335154815,1723891446045,-500.0,0.00024383,2]
[335154816,1723891446087,-500.0,0.00024383,2]
[335154817,1723891446131,-500.0,0.00024383,2]
[335154818,1723891446171,-500.0,0.00024383,2]
[335154819,1723891446212,-500.0,0.00024383,2]
[335154820,1723891446253,-500.0,0.00024383,2]
[335154821,1723891446293,-500.0,0.00024383,2]
[335154822,1723891446336,-500.0,0.00024383,2]
[335154823,1723891446377,-500.0,0.00024383,2]
[335154824,1723891446422,-500.0,0.00024383,2]
[335154825,1723891446466,-500.0,0.00024383,2]
[335154826,1723891446508,-532.94,0.00024383,2]
[335154827,1723891446550,-538.43,0.00024383,2]
[335154828,1723891446591,-500.0,0.00024383,2]
[335154829,1723891446632,-424.00283455,0.00024383,2]
[335154830,1723891446674,-679.41,0.00024383,2]
[335154831,1723891446714,-500.0,0.00024383,2]
[335154832,1723891446754,-544.22,0.00024383,2]
[335154833,1723891446795,-500.0,0.00024383,2]
[335154834,1723891446835,-500.0,0.00024383,2]
[335154835,1723891446876,-500.0,0.00024383,2]
[335154836,1723891446913,-500.0,0.00024383,2]
[335154837,1723891446951,-521.59,0.00024383,2]
[335154838,1723891446989,-500.0,0.00024383,2]
[335154839,1723891447028,-588.2,0.00024383,2]
[335154840,1723891447067,-500.0,0.00024383,2]
[335154841,1723891447107,-500.0,0.00024383,2]
[335154843,1723891447147,-500.0,0.00024383,2]
[335154844,1723891447187,-500.0,0.00024383,2]
[335154845,1723891447230,-500.0,0.00024383,2]
[335154846,1723891447272,-762.22,0.00024383,2]
[335154847,1723891447316,-723.81,0.00024383,2]
[335154848,1723891447354,-500.0,0.00024383,2]
[335154849,1723891447393,-500.0,0.00024383,2]
[335154850,1723891447434,-500.0,0.00024383,2]
[335154851,1723891447475,-500.0,0.00024383,2]
[335154852,1723891447516,-604.91,0.00024383,2]
[335154853,1723891447554,-500.0,0.00024383,2]
[335154854,1723891447596,-500.0,0.00024383,2]
[335154855,1723891447635,-500.0,0.00024383,2]
[335154856,1723891447674,-500.0,0.00024383,2]
[335154857,1723891447715,-1091.72,0.00024383,2]
[335154858,1723891447753,-500.0,0.00024383,2]
[335154859,1723891447791,-500.0,0.00024383,2]
[335154860,1723891447829,-863.04,0.00024383,2]
[335154861,1723891447867,-633.13,0.00024383,2]
[335154862,1723891447905,-681.39,0.00024383,2]
[335154863,1723891447940,-500.0,0.00024383,2]
[335154864,1723891447988,-500.0,0.00024383,2]
[335154865,1723891448030,-500.0,0.00024383,2]
[335154866,1723891448072,-500.0,0.00024383,2]
[335154867,1723891448113,-500.0,0.00024383,2]
[335154868,1723891448155,-500.0,0.00024383,2]
[335154869,1723891448200,-604.59,0.00024383,2]
[335154870,1723891448245,-500.0,0.00024383,2]
[335154871,1723891448289,-500.0,0.00024383,2]
[335154872,1723891448330,-615.38,0.00024383,2]
[335154873,1723891448370,-500.0,0.00024383,2]
[335154874,1723891448414,-500.0,0.00024383,2]
[335154875,1723891448456,-500.0,0.00024383,2]
[335154876,1723891448500,-500.0,0.00024383,2]
[335154877,1723891448542,-1269.87,0.00024383,2]
[335154878,1723891448582,-500.0,0.00024383,2]
[335154879,1723891448622,-500.0,0.00024383,2]
[335154880,1723891448663,-496.27289926,0.00024383,2]
[335154881,1723891448706,-500.0,0.00024383,2]
[335154882,1723891448748,-935.54,0.00024383,2]
[335154883,1723891448792,-748.07,0.00024383,2]
[335154884,1723891448833,-500.0,0.00024383,2]
[335154885,1723891448873,-554.61,0.00024383,2]
[335154886,1723891448916,-1119.04,0.00024383,2]
[335154887,1723891448955,-596.96,0.00024383,2]
[335154888,1723891448996,-500.0,0.00024383,2]
[335154889,1723891449035,-595.55,0.00024383,2]
[335154890,1723891449078,-500.0,0.00024383,2]
[335154891,1723891449121,-500.0,0.00024383,2]
[335154892,1723891449161,-733.25,0.00024383,2]
[335154893,1723891449203,-500.0,0.00024383,2]
[335154894,1723891449246,-611.55,0.00024383,2]
[335154895,1723891449286,-557.24,0.00024383,2]
[335154896,1723891449328,-500.0,0.00024383,2]
[335154897,1723891449371,-500.0,0.00024383,2]
[335154898,1723891449416,-1056.32,0.00024383,2]
[335154899,1723891449459,-500.0,0.00024383,2]
[335154900,1723891449499,-528.21,0.00024383,2]
[335154901,1723891449538,-788.64,0.00024383,2]
[335154902,1723891449580,-714.0,0.00024383,2]
[335154903,1723891449620,-521.44,0.00024383,2]
[335154904,1723891449658,-604.07,0.00024383,2]
[335154905,1723891449864,-500.0,0.00024383,2]
[335154906,1723891449904,-500.0,0.00024383,2]
[335154907,1723891449942,-1279.11,0.00024383,2]
[335154908,1723891449981,-611.28,0.00024383,2]
[335154909,1723891450020,-500.0,0.00024383,2]
[335154910,1723891450059,-595.74748078,0.00024383,2]
[335154911,1723891450097,-2691.39,0.00024383,2]
[335154912,1723891450136,-500.0,0.00024383,2]
[335154913,1723891450174,-611.25,0.00024383,2]
[335154914,1723891450210,-500.0,0.00024383,2]
[335154915,1723891450247,-673.24,0.00024383,2]
[335154916,1723891450288,-786.26,0.00024383,2]
[335154917,1723891450324,-500.0,0.00024383,2]
[335154918,1723891450360,-2049.78,0.00024383,2]
[335154919,1723891450397,-868.03,0.00024383,2]
[335154920,1723891450435,-1141.49,0.00024383,2]
[335154921,1723891450470,-1514.85,0.00024383,2]
[335154922,1723891450509,-852.88,0.00024383,2]
[335154923,1723891450545,-432.74924054,0.00024383,2]
[335154924,1723891450581,-500.0,0.00024383,2]
[335154925,1723891450618,-4453.72,0.00024383,2]
[335154926,1723891450656,-500.0,0.00024383,2]
[335154927,1723891450695,-500.0,0.00024383,2]
[335154928,1723891450734,-1273.07,0.00024383,2]
[335154929,1723891450773,-616.47,0.00024383,2]
[335154930,1723891450814,-285.09681649,0.00024383,2]
[335154931,1723891450853,-500.0,0.00024383,2]
[335154932,1723891450892,-575.39,0.00024383,2]
[335154933,1723891450931,-766.96,0.00024383,2]
[335154934,1723891450972,-500.0,0.00024383,2]
[335154935,1723891451013,-1100.47,0.00024383,2]
[335154936,1723891451054,-1098.98,0.00024383,2]
[335154937,1723891451094,-724.68,0.00024383,2]
[335154938,1723891451137,-848.12,0.00024383,2]
[335154939,1723891451178,-995.03,0.00024383,2]
[335154940,1723891451218,-525.6,0.00024383,2]
[335154941,1723891451257,-582.62,0.00024383,2]
[335154942,1723891451299,-500.0,0.00024383,2]
[335154943,1723891451341,-500.0,0.00024383,2]
[335154944,1723891451380,-500.0,0.00024383,2]
[335154945,1723891451421,-594.41,0.00024383,2]
[335154946,1723891451459,-506.91,0.00024383,2]
[335154947,1723891451498,-500.0,0.00024383,2]
[335154948,1723891451535,-911.63,0.00024383,2]
[335154949,1723891451574,-825.45,0.00024383,2]
[335154950,1723891451614,-237.84544261,0.00024383,2]
[335154951,1723891451652,-365.60720031,0.00024383,2]
[335154952,1723891451689,-500.0,0.00024383,2]
[335154953,1723891451727,-500.0,0.00024383,2]
[335154954,1723891451767,-500.0,0.00024383,2]
[335154955,1723891451807,-585.54,0.00024383,2]
[335154956,1723891451850,-639.54414284,0.00024383,2]
[335154957,1723891451891,-500.0,0.00024383,2]
[335154958,1723891451930,-2531.26,0.00024383,2]
[335154959,1723891451970,-757.2,0.00024383,2]
[335154960,1723891452011,-500.0,0.00024383,2]
[335154961,1723891452052,-6925.33,0.00024383,2]
[335154962,1723891452091,-500.0,0.00024383,2]
[335154963,1723891452127,-753.32,0.00024383,2]
[335154964,1723891452166,-500.0,0.00024383,2]
[335154965,1723891452206,-500.0,0.00024383,2]
[335154966,1723891452247,-500.0,0.00024383,2]
[335154967,1723891452287,-502.37,0.00024383,2]
[335154968,1723891452326,-500.0,0.00024383,2]
[335154969,1723891452364,-646.63,0.00024383,2]
[335154970,1723891452404,-500.0,0.00024383,2]
[335154971,1723891452447,-500.0,0.00024383,2]
[335154972,1723891452486,-1147.61,0.00024383,2]
[335154973,1723891452526,-786.45,0.00024383,2]
[335154974,1723891452565,-500.0,0.00024383,2]
[335154975,1723891452605,-656.6,0.00024383,2]
[335154976,1723891452646,-734.42,0.00024383,2]
[335154977,1723891452686,-623.95,0.00024383,2]
[335154978,1723891452725,-500.0,0.00024383,2]
[335154979,1723891452761,-268.54005154,0.00024383,2]
[335154980,1723891452798,-500.0,0.00024383,2]
[335154981,1723891452834,-500.0,0.00024383,2]
[335154982,1723891452871,-500.0,0.00024383,2]
[335154983,1723891452907,-854.07,0.00024383,2]
[335154984,1723891452947,-1042.81,0.00024383,2]
[335154985,1723891452981,-670.26,0.00024383,2]
[335154986,1723891453017,-150.112233,0.000244,2]
[335154987,1723891453054,-500.0,0.00024657,2]
[335154988,1723891453094,-500.0,0.00024657,2]
[335154989,1723891453136,-500.0,0.00024657,2]
[335154990,1723891453179,-200.0,0.00024657,2]
[335154991,1723891453225,-500.0,0.00024657,2]
[335154992,1723891453269,-500.0,0.00024657,2]
[335154993,1723891453316,-500.0,0.00024657,2]
[335154994,1723891453362,-583.65,0.00024657,2]
[335154995,1723891453409,-500.0,0.00024657,2]
[335154996,1723891453455,-500.0,0.00024657,2]
[335154997,1723891453499,-500.0,0.00024657,2]
[335154998,1723891453542,-505.16895495,0.00024657,2]
[335154999,1723891453585,-500.0,0.00024657,2]
[335155000,1723891453626,-500.0,0.00024657,2]
[335155001,1723891453665,-500.0,0.00024657,2]
[335155002,1723891453706,-500.0,0.00024657,2]
[335155003,1723891453747,-500.0,0.00024657,2]
[335155004,1723891453787,-500.0,0.00024657,2]
[335155005,1723891453826,-500.0,0.00024657,2]
[335155006,1723891453865,-532.94,0.00024657,2]
[335155007,1723891453905,-538.43,0.00024657,2]
[335155008,1723891453945,-500.0,0.00024657,2]
[335155009,1723891453998,-679.41,0.00024657,2]
[335155010,1723891454040,-500.0,0.00024657,2]
[335155011,1723891454084,-544.22,0.00024657,2]
[335155012,1723891454123,-500.0,0.00024657,2]
[335155013,1723891454160,-500.0,0.00024657,2]
[335155014,1723891454197,-500.0,0.00024657,2]
[335155015,1723891454235,-500.0,0.00024657,2]
[335155016,1723891454272,-521.59,0.00024657,2]
[335155017,1723891454313,-500.0,0.00024657,2]
[335155018,1723891454352,-588.2,0.00024657,2]
[335155019,1723891454391,-500.0,0.00024657,2]
[335155020,1723891454432,-500.0,0.00024657,2]
[335155021,1723891454472,-500.0,0.00024657,2]
[335155022,1723891454514,-500.0,0.00024657,2]
[335155023,1723891454556,-500.0,0.00024657,2]
[335155024,1723891454595,-762.22,0.00024657,2]
[335155025,1723891454636,-723.81,0.00024657,2]
[335155026,1723891454677,-500.0,0.00024657,2]
[335155027,1723891454717,-500.0,0.00024657,2]
[335155028,1723891454758,-33.90643309,0.00024657,2]
[335155030,1723891518493,157.894736,0.00014247,2]
[335155031,1723891556661,154.71377951,0.00014519,2]
[335155032,1723891576292,404.34865858,0.00014519,2]
[335155033,1723891577987,154.95772121,0.00014519,2]
[335155035,1723891597167,569.2097652,0.00014519,2]
[335155036,1723891602833,31312.95722105,0.00014519,2]
[335155037,1723891612307,196.69322642,0.00014519,2]
[335155040,1723891622613,-156.6016576,0.0002,2]
[335155041,1723891622662,-157.894736,0.00021065,2]
[335155042,1723891622710,-3336.22041725,0.00021817,2]
[335155043,1723891622761,-500.0,0.00021916,2]
[335155044,1723891622809,-211.08457983,0.00021916,2]
[335155045,1723891622857,-238.56347241,0.00021916,2]
[335155046,1723891622906,-500.0,0.00021916,2]
[335155047,1723891622953,-500.0,0.00021916,2]
[335155048,1723891623001,-500.0,0.00021916,2]
[335155049,1723891623056,-500.0,0.00021916,2]
[335155050,1723891623107,-500.0,0.00021916,2]
[335155051,1723891623157,-500.0,0.00021916,2]
[335155052,1723891623203,-500.0,0.00021916,2]
[335155053,1723891623252,-500.0,0.00021916,2]
[335155054,1723891623300,-539.23377367,0.00021916,2]
[335155055,1723891623349,-500.0,0.00021916,2]
[335155056,1723891623398,-500.0,0.00021916,2]
[335155057,1723891623447,-500.0,0.00021916,2]
[335155058,1723891623498,-500.0,0.00021916,2]
[335155059,1723891623548,-500.0,0.00021916,2]
[335155060,1723891623598,-500.0,0.00021916,2]
[335155061,1723891623645,-500.0,0.00021916,2]
[335155062,1723891623697,-234.06726456,0.00021916,2]
[335155063,1723891623746,-500.0,0.00021916,2]
[335155064,1723891623796,-500.0,0.00021916,2]
[335155065,1723891623848,-500.0,0.00021916,2]
[335155066,1723891623900,-500.0,0.00021916,2]
[335155067,1723891623949,-500.0,0.00021916,2]
[335155068,1723891623999,-500.0,0.00021916,2]
[335155069,1723891624047,-500.0,0.00021916,2]
[335155070,1723891624094,-500.0,0.00021917,2]
[335155071,1723891624139,-500.0,0.00021917,2]
[335155072,1723891624185,-500.0,0.00021917,2]
[335155073,1723891624229,-500.0,0.00021917,2]
[335155074,1723891624272,-500.0,0.00021917,2]
[335155075,1723891624316,-500.0,0.00021917,2]
[335155076,1723891624363,-500.0,0.00021917,2]
[335155077,1723891624410,-500.0,0.00021917,2]
[335155078,1723891624455,-500.0,0.00021917,2]
[335155079,1723891624504,-375.8910051,0.00021917,2]
[335155080,1723891624551,-500.0,0.00021917,2]
[335155081,1723891624598,-548.14768883,0.00021917,2]
[335155082,1723891624645,-500.0,0.00021917,2]
[335155083,1723891624693,-500.0,0.00021917,2]
[335155084,1723891624738,-558.14271637,0.00021917,2]
[335155085,1723891624788,-500.0,0.00021917,2]
[335155086,1723891624833,-500.0,0.00021917,2]
[335155087,1723891624880,-500.0,0.00021917,2]
[335155088,1723891624926,-500.0,0.00021917,2]
[335155089,1723891624972,-500.0,0.00021917,2]
[335155090,1723891625017,-500.0,0.00021917,2]
[335155091,1723891625061,-500.0,0.00021917,2]
[335155092,1723891625105,-504.20703432,0.00021917,2]
[335155093,1723891625152,-500.0,0.00021917,2]
[335155094,1723891625197,-500.0,0.00021917,2]
[335155095,1723891625242,-500.0,0.00021917,2]
[335155096,1723891625286,-500.0,0.00021917,2]
[335155097,1723891625332,-500.0,0.00021917,2]
[335155098,1723891625385,-500.0,0.00021917,2]
[335155099,1723891625438,-500.0,0.00021917,2]
[335155100,1723891625487,-506.93125917,0.00021917,2]
[335155101,1723891625536,-215.30809943,0.00021917,2]
[335155102,1723891625583,-500.0,0.00021917,2]
[335155103,1723891625627,-500.0,0.00021917,2]
[335155104,1723891625672,-500.0,0.00021917,2]
[335155105,1723891625721,-500.0,0.00021917,7]
[335155106,1723891625764,-500.0,0.00021917,2]
[335155107,1723891625812,-500.0,0.00021917,2]
[335155108,1723891625857,-500.0,0.00021917,2]
[335155109,1723891625905,-500.0,0.00021917,2]
[335155110,1723891625949,-638.63,0.00021917,2]
[335155111,1723891625999,-500.0,0.00021917,2]
[335155112,1723891626047,-500.0,0.00021917,2]
[335155113,1723891626093,-500.0,0.00021917,2]